bitfinex/quotes_ETHUSD_20251118
["timestamp","ask_amount","ask_price","bid_price","bid_amount"]
[1763480484291,0.1656,3120.5,3118.1,0.19]
[1763480484292,0.4673,3120.3,3118.4,0.4917]
[1763480484524,0.405504,3120.4,3118.4,0.4917]
[1763480484726,0.6329,3120.5,3118.4,0.4917]
[1763480484889,0.4673,3120.1,3118.4,0.4917]
[1763480485396,0.4673,3120.1,3118.1,0.19]
[1763480485696,0.405504,3119.9,3118.1,0.6817]
[1763480486088,0.405504,3119.7,3118.1,0.6817]
[1763480486291,0.1656,3120.5,3118.1,0.6817]
[1763480486292,0.1656,3120.5,3118.3,0.405504]
[1763480486544,0.002,3120.6,3118.5,0.405504]
[1763480487039,0.002,3120.6,3120.1,0.19]
[1763480487390,0.002,3120.6,3120.1,0.6817]
[1763480487630,0.002,3120.6,3120.1,1.087204]
[1763480487853,0.1689,3123.0,3120.6,1.31249664]
[1763480488062,0.1689,3123.0,3120.1,1.2502469]
[1763480488063,6.991995,3122.9,3120.7,0.4917]
[1763480488244,0.7160895,3122.8,3120.7,0.4917]
[1763480488447,2.996837,3122.8,3120.7,0.4917]
[1763480488755,0.1689,3123.0,3120.0,0.59299264]
[1763480488756,0.90699264,3122.6,3120.0,0.59299264]
[1763480488910,0.405504,3122.3,3120.1,0.0579]
[1763480489110,0.405504,3122.1,3120.1,0.0579]
[1763480489565,0.4673,3122.9,3120.2,0.405504]
[1763480489726,0.1928,3122.3,3120.2,0.405504]
[1763480490462,0.4673,3122.7,3120.5,0.405504]
[1763480490631,0.1709,3123.0,3120.5,0.405504]
[1763480490632,0.1709,3123.0,3120.8,0.405504]
[1763480490830,0.1709,3123.0,3120.8,1.31249664]
[1763480491035,0.1709,3123.0,3121.0,0.405504]
[1763480491232,0.1709,3123.0,3121.1,0.4917]
[1763480491431,0.002,3123.0,3121.2,0.405504]
[1763480491664,0.002,3123.0,3121.5,0.405504]
[1763480492155,0.002,3123.0,3121.7,0.405504]
[1763480492560,0.002,3123.0,3121.8,0.4917]
[1763480492718,0.4693,3123.0,3121.3,0.6817]
[1763480492921,0.4693,3123.0,3121.4,0.4917]
[1763480493123,0.002,3123.0,3121.4,0.4917]
[1763480493323,0.002,3123.0,3121.4,1.39869264]
[1763480493553,0.002,3123.0,3121.5,0.405504]
[1763480493856,0.002,3123.0,3121.5,0.897204]
[1763480494265,0.002,3123.0,3121.7,0.405504]
[1763480494622,0.002,3123.0,3121.9,0.405504]
[1763480494827,0.002,3123.0,3122.0,0.90699264]
[1763480495052,0.002,3123.0,3122.9,0.19]
[1763480495254,0.002,3123.0,3122.9,0.595504]
[1763480495477,0.1928,3126.2,3123.0,0.405504]
[1763480495749,0.4673,3124.8,3122.9,0.6817]
[1763480495975,0.4673,3124.8,3123.0,0.4917]
[1763480496187,0.4665,3124.8,3122.9,0.19]
[1763480496579,0.405504,3124.7,3122.9,0.6456]
[1763480496780,0.405504,3124.7,3122.9,0.19]
[1763480496953,0.90699264,3125.9,3122.9,0.6456]
[1763480496954,5.63216937,3125.9,3122.9,0.6456]
[1763480497305,5.63216937,3125.9,3121.8,5.63216937]
[1763480497306,0.90699264,3124.5,3120.9,5.63216937]
[1763480497507,0.405504,3124.2,3121.3,0.6456]
[1763480497797,1.31249664,3124.0,3121.3,0.6456]
[1763480497951,1.31249664,3123.8,3121.4,0.4556]
[1763480498151,1.31249664,3123.6,3121.4,0.4556]
[1763480498463,1.31249664,3123.6,3121.3,0.19]
[1763480498464,1.31249664,3123.4,3121.3,0.19]
[1763480498688,0.38964456,3123.3,3121.4,0.4556]
[1763480498989,0.405504,3123.0,3121.3,0.19]
[1763480499148,1.31249664,3122.8,3121.3,0.19]
[1763480499462,3.389,3122.9,3121.4,0.6456]
[1763480499463,0.469,3122.9,3121.4,0.6456]
[1763480499665,3.389,3122.6,3121.4,0.19]
[1763480499853,0.90699264,3122.5,3121.4,0.19]
[1763480500203,3.81859926,3122.4,3120.8,0.4556]
[1763480500349,3.81859926,3122.4,3120.9,0.4556]
[1763480500350,0.42959926,3122.4,3120.9,0.4556]
[1763480500702,4.29599264,3122.5,3120.9,0.4556]
[1763480500993,0.30881327,3122.1,3120.7,0.19]
[1763480501192,0.1937,3122.0,3120.7,0.19]
[1763480501991,0.1937,3123.3,3120.7,0.19]
[1763480502294,0.1937,3123.3,3121.3,0.405504]
[1763480502478,0.1937,3124.0,3123.2,0.1904]
[1763480502867,0.469,3124.7,3123.2,0.1904]
[1763480503395,0.469,3124.7,3123.3,0.4556]
[1763480503396,0.3858,3124.6,3123.3,0.4556]
[1763480503601,0.1656,3124.9,3123.3,0.4556]
[1763480503790,0.1937,3125.1,3123.4,0.405504]
[1763480503991,0.1937,3125.6,3123.4,0.405504]
[1763480504160,0.1937,3125.6,3123.2,0.1904]
[1763480504161,0.1937,3125.6,3123.7,0.405504]
[1763480504662,0.1937,3125.6,3123.8,0.4556]
[1763480504863,0.1937,3126.1,3123.9,0.405504]
[1763480505099,0.6627,3126.1,3123.9,0.405504]
[1763480505259,0.6627,3126.1,3124.1,0.405504]
[1763480505464,0.469,3126.0,3124.2,0.4556]
[1763480505863,0.1937,3126.1,3124.3,0.405504]
[1763480506118,0.36124842,3127.5,3124.4,1.36259264]
[1763480506119,0.1937,3126.4,3124.4,1.36259264]
[1763480506474,0.1937,3126.4,3124.6,0.405504]
[1763480506664,0.469,3126.6,3124.8,0.405504]
[1763480506864,0.469,3126.6,3124.9,0.1239]
[1763480507403,0.469,3126.6,3125.0,0.4556]
[1763480507899,0.469,3126.6,3124.9,0.1239]
[1763480508100,0.405504,3126.5,3124.9,0.1239]
[1763480508468,0.405504,3126.3,3124.9,0.1239]
[1763480508707,0.405504,3126.3,3124.5,0.1239]
[1763480508903,0.469,3126.2,3124.5,0.5795]
[1763480509103,0.405504,3126.1,3124.5,0.1239]
[1763480509306,0.405504,3126.1,3121.0,1.46019407]
[1763480509465,0.405504,3125.9,3123.4,0.4556]
[1763480509661,0.405504,3125.9,3123.5,5.63216937]
[1763480509911,0.1937,3125.8,3123.5,5.63216937]
[1763480510066,0.6657,3126.1,3123.7,0.405504]
[1763480510265,0.003,3126.1,3124.3,0.405504]
[1763480510691,0.003,3126.1,3124.2,0.90699264]
[1763480510692,0.003,3126.1,3124.4,0.4556]
[1763480510924,0.469,3126.0,3123.9,0.4556]
[1763480511225,0.405504,3125.9,3123.9,0.4556]
[1763480511426,0.599204,3125.9,3123.9,0.4556]
[1763480511600,0.405504,3125.7,3123.5,0.4556]
[1763480511788,0.90699264,3125.5,3123.5,0.4556]
[1763480511988,0.90715686,3125.4,3123.5,0.4556]
[1763480512188,0.469,3125.5,3123.5,0.4556]
[1763480512724,0.469,3125.5,3123.6,0.405504]
[1763480512923,0.405504,3125.4,3123.7,0.4556]
[1763480513441,0.1937,3125.9,3123.7,0.4556]
[1763480513442,0.469,3125.3,3123.7,0.4556]
[1763480513743,0.405504,3125.7,3123.7,0.4556]
[1763480514101,0.469,3125.8,3123.7,0.4556]
[1763480514102,0.469,3125.6,3123.7,0.4556]
[1763480515410,0.405504,3125.5,3123.7,0.4556]
[1763480515892,0.405504,3125.4,3123.7,0.4556]
[1763480516327,0.405504,3125.2,3123.7,0.4556]
[1763480516525,0.1937,3125.9,3123.7,0.4556]
[1763480516728,0.469,3125.8,3123.7,0.4556]
[1763480517091,0.405504,3125.7,3123.7,0.4556]
[1763480517638,0.469,3125.6,3123.7,0.4556]
[1763480519693,3.389,3125.7,3123.7,0.4556]
[1763480519694,0.385,3125.5,3123.7,0.4556]
[1763480519896,0.854,3125.5,3123.7,0.4556]
[1763480520595,3.389,3125.8,3123.7,0.4556]
[1763480520951,3.858,3125.5,3123.7,0.4556]
[1763480521304,0.469,3125.4,3123.7,0.4556]
[1763480521525,0.1937,3125.9,3123.8,0.405504]
[1763480521711,0.469,3125.8,3123.8,0.405504]
[1763480521926,0.469,3125.8,3123.9,0.4556]
[1763480522310,3.389,3125.7,3123.5,0.4556]
[1763480522519,0.3858,3125.6,3123.5,0.4556]
[1763480522854,0.3858,3125.6,3122.9,0.001]
[1763480522855,0.1937,3123.6,3122.9,0.001]
[1763480523014,0.6627,3123.6,3122.9,0.001]
[1763480523545,4.48969264,3124.0,3122.9,0.001]
[1763480523699,3.858,3123.6,3122.9,0.001]
[1763480523908,3.389,3123.2,3122.9,0.001]
[1763480524097,0.85700984,3124.6,3122.9,0.001]
[1763480524297,0.6627,3124.0,3122.9,0.001]
[1763480524695,0.469,3123.9,3122.9,0.001]
[1763480525243,1.5920935,3124.8,3122.9,0.001]
[1763480525244,0.469,3124.4,3123.0,0.5795]
[1763480525452,0.1937,3123.9,3122.9,0.001]
[1763480525648,0.6627,3123.9,3122.9,0.001]
[1763480525959,0.1937,3123.9,3123.0,0.1239]
[1763480526245,0.1954,3123.9,3123.0,0.1239]
[1763480526650,0.6568,3123.9,3122.9,0.001]
[1763480527012,0.4614,3123.8,3122.9,0.001]
[1763480528829,0.90699264,3123.7,3122.9,0.001]
[1763480529037,0.47573926,3123.6,3122.9,0.001]
[1763480529350,0.4614,3123.5,3122.9,0.001]
[1763480529928,0.405504,3123.4,3122.9,0.001]
[1763480530442,0.4614,3123.3,3122.9,0.001]
[1763480531136,0.1954,3123.9,3122.9,0.001]
[1763480531464,0.4614,3123.8,3122.9,0.001]
[1763480531839,0.405504,3123.7,3122.9,0.001]
[1763480532176,0.29790784,3123.7,3122.9,0.001]
[1763480532360,0.4614,3123.7,3122.9,0.001]
[1763480534270,0.1937,3125.0,3122.9,0.001]
[1763480534574,0.4614,3124.7,3123.0,0.47]
[1763480534961,0.4614,3124.7,3122.9,0.001]
[1763480535181,0.2978026,3124.9,3122.9,0.001]
[1763480535182,0.2978026,3124.9,3123.0,0.47]
[1763480535492,0.4614,3125.5,3123.1,0.03201946]
[1763480535668,0.4614,3125.4,3123.1,0.405504]
[1763480535983,0.4614,3125.4,3123.3,0.405504]
[1763480536279,0.4614,3125.4,3123.2,0.47]
[1763480536476,3.794504,3125.3,3123.2,0.47]
[1763480536726,0.4614,3125.4,3122.9,0.001]
[1763480536727,3.794504,3125.0,3122.9,0.001]
[1763480536886,3.794504,3125.0,3123.1,0.47]
[1763480536887,0.29775136,3124.9,3123.1,0.47]
[1763480537035,0.4614,3125.1,3123.1,0.47]
[1763480537434,0.1954,3125.0,3123.1,0.47]
[1763480537945,0.4614,3124.9,3123.1,0.47]
[1763480538385,0.70360149,3124.8,3122.9,0.001]
[1763480538590,0.1954,3123.0,3122.9,0.001]
[1763480538942,0.4614,3123.4,3122.9,0.001]
[1763480539134,0.1954,3123.3,3122.9,0.001]
[1763480539335,0.4614,3123.2,3122.9,0.001]
[1763480539543,0.49527926,3123.1,3122.9,0.001]
[1763480539740,0.4614,3123.2,3122.9,0.001]
[1763480540035,0.4614,3123.1,3122.9,0.001]
[1763480540879,0.405504,3123.0,3122.9,0.001]
[1763480541190,0.4614,3123.1,3122.9,0.001]
[1763480541503,5.16379664,3123.0,3122.9,0.001]
[1763480541704,5.71000871,3123.0,3122.9,0.001]
[1763480543187,5.70920871,3123.0,3122.9,0.001]
[1763480543509,4.29599264,3123.0,3122.9,0.001]
[1763480543714,0.1954,3123.3,3122.9,0.001]
[1763480543920,4.70149664,3123.0,3122.9,0.001]
[1763480544128,4.29599264,3123.0,3122.9,0.001]
[1763480544279,0.405504,3123.2,3122.9,0.001]
[1763480544912,0.90699264,3123.0,3122.9,0.001]
[1763480545411,1.8394423,3123.0,3122.9,0.001]
[1763480545601,5.6339463,3123.0,3122.9,0.001]
[1763480545914,5.2284423,3123.0,3122.9,0.001]
[1763480546122,5.6339463,3123.0,3122.9,0.001]
[1763480546411,5.2284423,3123.0,3122.9,0.001]
[1763480546617,0.1954,3123.3,3122.9,0.001]
[1763480546800,1.14267979,3124.6,3122.9,0.001]
[1763480546801,0.1812,3123.6,3122.9,0.001]
[1763480546999,0.4623,3123.3,3122.9,0.001]
[1763480547876,0.1812,3123.9,3122.9,0.001]
[1763480548081,0.405504,3123.8,3122.9,0.001]
[1763480548278,0.867804,3123.8,3122.9,0.001]
[1763480548479,4.29599264,3123.6,3122.9,0.001]
[1763480548677,3.81859926,3123.5,3122.9,0.001]
[1763480548882,4.29599264,3123.4,3122.9,0.001]
[1763480549113,3.389,3123.0,3122.9,0.001]
[1763480549315,3.389,3123.0,3122.5,0.001]
[1763480549316,3.794504,3122.8,3122.5,0.001]
[1763480549526,4.47719264,3122.6,3122.5,0.001]
[1763480549726,4.88269664,3122.6,3122.5,0.001]
[1763480549919,4.93949264,3122.6,3122.5,0.001]
[1763480550581,5.34499664,3122.6,3122.5,0.001]
[1763480550987,4.93949264,3122.6,3122.5,0.001]
[1763480551231,5.5155976,3122.6,3122.5,0.001]
[1763480551432,6.21980363,3122.6,3122.5,0.001]
[1763480551755,3.389,3122.2,3122.0,0.001]
[1763480551925,5.00019867,3122.1,3122.0,0.001]
[1763480552424,5.46249867,3122.1,3122.0,0.001]
[1763480552622,6.00874854,3122.1,3122.0,0.001]
[1763480553122,5.60324454,3122.1,3122.0,0.001]
[1763480553520,6.00874854,3122.1,3122.0,0.001]
[1763480554024,0.57610496,3122.6,3122.0,0.001]
[1763480554321,0.76091215,3122.5,3122.0,0.001]
[1763480554526,0.76092437,3122.4,3122.0,0.001]
[1763480554689,0.4623,3122.4,3122.0,0.001]
[1763480554893,3.389,3122.3,3122.0,0.001]
[1763480555316,4.70149664,3122.1,3122.0,0.001]
[1763480555550,5.00009968,3122.1,3122.0,0.001]
[1763480555755,3.389,3121.9,3120.1,0.4859]
[1763480555926,6.69735864,3122.0,3120.0,0.1904]
[1763480555927,3.389,3121.3,3120.0,0.1904]
[1763480556123,1.3365919,3121.2,3120.0,0.6529]
[1763480556430,4.7255919,3121.2,3120.0,0.6529]
[1763480556830,3.81859926,3121.2,3120.0,0.1904]
[1763480557032,0.585804,3121.6,3120.1,0.4625]
[1763480557247,3.389,3121.4,3120.1,0.4625]
[1763480557624,3.389,3121.5,3120.1,0.4625]
[1763480558360,0.90699264,3121.8,3120.1,0.4625]
[1763480558361,3.389,3121.3,3120.1,0.4625]
[1763480559292,1.31249664,3121.6,3120.1,0.4625]
[1763480559463,0.51597966,3121.5,3120.1,0.4625]
[1763480560175,0.1803,3122.2,3120.1,0.4625]
[1763480560335,0.1803,3121.8,3120.1,0.4625]
[1763480560955,0.405504,3121.6,3120.1,0.4625]
[1763480561157,0.70352102,3121.6,3120.1,0.4625]
[1763480561432,0.405504,3121.6,3120.1,0.4625]
[1763480561779,0.4583,3121.5,3120.1,0.4625]
[1763480561969,0.4583,3121.5,3120.0,0.1904]
[1763480561970,0.405504,3121.4,3120.0,0.1904]
[1763480562270,3.794504,3121.4,3120.0,0.6529]
[1763480562570,0.4252804,3121.3,3120.0,0.6529]
[1763480562773,0.4583,3121.3,3120.0,0.6529]
[1763480563485,1.36529264,3121.3,3120.0,0.6529]
[1763480563786,3.389,3120.9,3119.3,0.1631]
[1763480563969,0.405504,3120.5,3119.3,0.1631]
[1763480564360,0.405504,3120.5,3117.6,6.82401828]
[1763480564361,0.405504,3120.1,3118.4,0.6201]
[1763480564766,3.794504,3119.9,3118.4,0.1576]
[1763480564961,0.90699264,3119.4,3118.1,0.1576]
[1763480565168,4.12619764,3119.8,3118.1,0.1576]
[1763480565169,0.405504,3119.7,3118.1,0.1576]
[1763480565368,0.405504,3119.7,3118.5,0.4635]
[1763480565879,0.405504,3119.5,3118.5,0.001]
[1763480566198,1.77079664,3119.5,3118.5,0.001]
[1763480566398,0.51597966,3119.4,3118.5,0.001]
[1763480566695,0.404704,3119.4,3118.5,0.001]
[1763480566851,0.1803,3119.8,3118.5,0.4635]
[1763480567660,0.6386,3119.8,3118.5,0.4635]
[1763480568273,0.90699264,3119.6,3118.5,0.001]
[1763480568475,0.29774649,3119.5,3118.5,0.001]
[1763480568676,0.405504,3119.3,3118.5,0.001]
[1763480569161,0.585804,3118.6,3118.5,0.001]
[1763480569575,1.044104,3118.6,3118.5,0.001]
[1763480569799,1.34177375,3118.6,3118.5,0.001]
[1763480569950,0.405504,3118.4,3118.1,0.001]
[1763480570171,0.405504,3117.8,3116.0,0.4625]
[1763480570401,0.405504,3117.8,3115.3,0.4635]
[1763480570402,0.405504,3117.6,3115.3,0.4635]
[1763480570608,1.31249664,3117.4,3115.3,0.001]
[1763480570779,1.31249664,3117.2,3115.7,0.4625]
[1763480570976,0.405504,3117.0,3115.7,0.4625]
[1763480571390,0.405504,3117.2,3115.9,0.6256]
[1763480572005,0.405504,3117.0,3115.9,0.1631]
[1763480572205,1.31249664,3117.0,3115.5,0.4625]
[1763480572404,0.405504,3116.8,3115.5,0.4625]
[1763480572805,0.405504,3116.7,3115.5,0.4625]
[1763480573109,4.29599264,3117.3,3115.3,0.001]
[1763480573270,0.4583,3116.7,3115.3,0.001]
[1763480574006,0.4583,3116.8,3115.3,0.001]
[1763480574707,0.98157938,3117.8,3115.3,0.001]
[1763480574708,0.4583,3116.9,3115.3,0.001]
[1763480574908,0.4583,3116.9,3115.5,0.4625]
[1763480575207,0.405504,3116.8,3115.5,0.4625]
[1763480575607,0.405504,3116.6,3115.3,0.001]
[1763480575810,0.405504,3116.4,3115.3,0.001]
[1763480576126,3.794504,3117.6,3115.3,0.001]
[1763480576127,0.405504,3116.2,3115.3,0.001]
[1763480576424,0.4583,3116.3,3115.3,0.001]
[1763480576594,0.4583,3117.0,3115.4,0.4625]
[1763480576773,0.405504,3116.9,3115.5,0.4625]
[1763480577172,0.405504,3116.7,3115.3,0.001]
[1763480577568,0.405504,3116.7,3115.5,0.4625]
[1763480577773,0.405504,3116.5,3115.3,0.001]
[1763480577984,1.36529264,3117.7,3115.5,0.4625]
[1763480578182,0.405504,3117.4,3115.3,0.001]
[1763480578391,1.31249664,3117.2,3115.3,0.001]
[1763480578591,1.31249664,3117.0,3115.3,0.001]
[1763480578793,1.31249664,3116.8,3115.3,0.001]
[1763480578997,1.31249664,3116.6,3115.3,0.001]
[1763480579194,4.28219704,3117.5,3115.3,0.001]
[1763480579195,0.405504,3116.4,3115.3,0.001]
[1763480579472,0.405504,3117.3,3115.3,0.001]
[1763480579709,1.31249664,3117.1,3115.3,0.001]
[1763480579926,1.31249664,3116.9,3115.3,0.001]
[1763480580072,1.31249664,3116.7,3115.3,0.001]
[1763480580278,1.31249664,3116.5,3115.3,0.001]
[1763480580508,0.405504,3116.5,3115.3,0.001]
[1763480580708,0.90699264,3117.1,3115.3,0.001]
[1763480580709,0.405504,3116.3,3115.3,0.001]
[1763480580913,0.4583,3117.0,3115.3,0.001]
[1763480581089,0.4583,3117.0,3115.5,0.4625]
[1763480581408,0.4583,3117.0,3115.6,0.4635]
[1763480581913,0.4583,3117.0,3115.6,0.001]
[1763480582211,1.31249664,3116.8,3115.6,0.001]
[1763480582372,0.4583,3117.5,3115.7,0.4625]
[1763480582578,0.4583,3118.1,3115.8,0.03209448]
[1763480582823,0.6386,3117.9,3115.7,0.4625]
[1763480583176,0.6386,3117.9,3115.8,0.405504]
[1763480583372,0.1803,3117.9,3115.7,0.4625]
[1763480583599,0.1803,3117.9,3115.8,0.405504]
[1763480583802,0.1803,3117.9,3115.7,0.4625]
[1763480583803,0.1803,3117.9,3116.0,0.90699264]
[1763480584008,0.1803,3117.9,3115.7,0.4625]
[1763480584201,0.405504,3117.7,3115.8,0.4625]
[1763480584402,3.389,3117.4,3115.8,0.4625]
[1763480584617,0.405504,3117.7,3115.8,0.4625]
[1763480585276,0.405504,3117.8,3115.8,0.4625]
[1763480585526,3.389,3117.4,3115.8,0.4625]
[1763480585694,0.3389,3117.4,3115.8,0.4625]
[1763480585873,0.405504,3117.8,3115.8,0.4625]
[1763480586074,0.1803,3117.9,3115.9,0.405504]
[1763480586323,3.02421377,3120.1,3117.8,0.1765]
[1763480586324,0.86071061,3119.9,3117.8,0.1765]
[1763480586487,0.1909,3118.9,3117.8,0.1765]
[1763480586692,0.1909,3118.9,3116.6,6.7833563]
[1763480586693,4.29599264,3118.6,3117.3,0.1765]
[1763480587119,4.29599264,3118.6,3117.4,0.4939]
[1763480587479,0.002,3117.8,3117.4,0.4939]
[1763480587880,0.29593844,3120.1,3117.8,1.31249664]
[1763480588126,0.002,3118.2,3117.8,1.31249664]
[1763480588284,0.4974,3120.7,3118.3,0.405504]
[1763480588486,0.90699264,3120.5,3118.4,0.4939]
[1763480588790,0.002,3118.5,3118.4,0.4939]
[1763480589209,0.4974,3120.5,3118.4,0.4939]
[1763480589526,0.79360053,3120.9,3118.5,0.405504]
[1763480589679,4.576448,3120.8,3118.4,0.4939]
[1763480589878,0.29620053,3120.7,3118.4,0.4939]
[1763480590120,0.79360053,3120.7,3118.4,0.4939]
[1763480590415,0.1909,3121.0,3118.4,0.4939]
[1763480590416,0.4974,3120.5,3118.4,0.4939]
[1763480590720,0.29980385,3120.4,3118.4,0.4939]
[1763480590904,0.4974,3120.9,3118.4,0.4939]
[1763480591081,1.31249664,3120.8,3118.4,0.4939]
[1763480591277,1.31249664,3120.6,3118.4,0.4939]
[1763480591511,0.4974,3120.8,3118.5,0.405504]
[1763480591814,0.4974,3120.8,3118.4,0.4939]
[1763480592019,0.405504,3120.6,3118.4,0.4939]
[1763480592220,0.405504,3120.7,3118.4,0.4939]
[1763480592419,0.405504,3120.5,3118.4,0.4939]
[1763480592624,0.405504,3120.3,3118.4,0.4939]
[1763480592827,0.4974,3120.6,3118.4,0.4939]
[1763480593250,0.405504,3120.5,3118.4,0.4939]
[1763480593712,0.405504,3120.3,3118.4,0.4939]
[1763480593914,0.405504,3120.3,3118.4,0.6039]
[1763480594305,0.405504,3120.2,3118.4,0.6039]
[1763480594745,0.405504,3120.1,3118.4,0.6039]
[1763480595049,0.405504,3120.3,3118.5,0.4939]
[1763480595232,0.405504,3120.3,3118.5,0.4839]
[1763480595410,0.405504,3120.1,3118.5,0.4839]
[1763480595743,0.405504,3119.9,3118.4,0.11]
[1763480596253,0.405504,3119.7,3118.4,0.11]
[1763480596600,0.405504,3119.5,3118.4,0.11]
[1763480596804,0.902904,3119.5,3118.4,0.11]
[1763480597246,0.405504,3119.3,3118.4,0.11]
[1763480598350,0.405504,3119.7,3118.4,0.11]
[1763480598534,0.6883,3119.8,3118.4,0.11]
[1763480598535,0.405504,3119.3,3118.4,0.11]
[1763480598905,0.405504,3119.1,3118.4,0.11]
[1763480599531,0.4974,3119.2,3118.4,0.11]
[1763480599532,3.794504,3119.2,3118.4,0.11]
[1763480599710,0.405504,3119.0,3118.4,0.11]
[1763480600319,0.1996,3118.9,3118.4,0.11]
[1763480601517,0.4717,3118.8,3118.4,0.11]
[1763480601916,0.1996,3118.9,3118.4,0.11]
[1763480602445,3.8607,3118.8,3118.4,0.11]
[1763480602764,3.794504,3118.5,3118.4,0.11]
[1763480602971,0.4717,3119.4,3118.4,0.11]
[1763480603131,0.6713,3119.4,3118.4,0.11]
[1763480603463,0.405504,3119.2,3118.4,0.11]
[1763480603675,0.1996,3118.5,3118.4,0.11]
[1763480603869,3.389,3118.4,3116.7,0.1398]
[1763480604067,3.389,3118.4,3115.3,6.7843563]
[1763480604068,0.405504,3117.3,3116.3,0.1398]
[1763480604420,0.405504,3117.5,3116.3,0.1398]
[1763480604574,0.1996,3117.9,3116.4,0.4886]
[1763480604777,0.16800078,3118.2,3116.4,0.4886]
[1763480605270,0.405504,3118.1,3116.4,0.4886]
[1763480605474,0.70303157,3118.1,3116.4,0.4886]
[1763480605690,1.31249664,3117.9,3116.3,0.1398]
[1763480605894,0.405504,3117.7,3116.3,0.4886]
[1763480606393,0.405504,3117.5,3115.1,0.90699264]
[1763480606594,0.7032664,3117.5,3116.3,0.001]
[1763480606980,0.405504,3117.5,3116.3,0.001]
[1763480607802,0.405504,3117.8,3116.3,0.001]
[1763480608155,0.4717,3117.7,3116.4,0.1874]
[1763480608351,0.76957938,3117.7,3116.4,0.1874]
[1763480608557,0.405504,3117.6,3116.3,0.001]
[1763480608873,1.17508338,3117.6,3116.3,0.001]
[1763480609057,0.29787938,3117.5,3116.3,0.001]
[1763480609261,1.61037602,3117.4,3116.3,0.001]
[1763480609470,0.405504,3117.2,3116.3,0.001]
[1763480609666,0.70338338,3117.2,3116.3,0.001]
[1763480609867,0.405504,3117.0,3116.3,0.001]
[1763480610407,0.405504,3116.9,3116.3,0.001]
[1763480610557,1.61067149,3116.9,3116.3,0.001]
[1763480610889,0.405504,3116.7,3116.3,0.001]
[1763480611099,0.86071061,3117.8,3116.3,0.001]
[1763480611100,0.405504,3117.1,3116.3,0.001]
[1763480611410,0.29817074,3117.1,3116.3,0.001]
[1763480611710,0.29817074,3117.7,3116.3,0.1884]
[1763480612004,0.1996,3117.9,3116.3,0.1884]
[1763480612157,0.6713,3117.9,3116.3,0.1884]
[1763480612566,0.76993762,3117.8,3116.3,0.1884]
[1763480613059,0.405504,3117.6,3116.3,0.1884]
[1763480613273,0.70375695,3117.6,3116.3,0.001]
[1763480613509,1.31249664,3117.4,3116.3,0.001]
[1763480613658,4.70149664,3117.2,3116.3,0.001]
[1763480613995,3.389,3116.7,3115.9,0.001]
[1763480614298,0.90699264,3116.4,3115.9,0.001]
[1763480614481,0.29825295,3116.3,3115.9,0.001]
[1763480614797,0.76995295,3116.3,3115.9,0.001]
[1763480615002,0.4717,3116.2,3115.9,0.001]
[1763480615479,0.4717,3116.6,3115.9,0.001]
[1763480615869,0.405504,3116.5,3115.9,0.001]
[1763480616270,0.405504,3116.4,3115.9,0.001]
[1763480616695,2.04840997,3117.7,3115.9,0.001]
[1763480616696,0.86071061,3117.6,3115.9,0.001]
[1763480616959,1.50759837,3117.2,3115.9,0.001]
[1763480617299,0.405504,3117.0,3115.9,0.001]
[1763480617469,0.877504,3117.1,3115.9,0.001]
[1763480617671,1.31249664,3116.9,3115.9,0.001]
[1763480617991,0.405504,3116.9,3115.9,0.001]
[1763480618196,0.405504,3116.7,3115.9,0.001]
[1763480618404,0.90699264,3116.6,3115.9,0.001]
[1763480618598,0.405504,3116.5,3115.9,0.001]
[1763480618803,0.877504,3116.5,3115.9,0.001]
[1763480618989,0.405504,3116.3,3115.9,0.001]
[1763480619197,0.405504,3116.3,3115.6,0.001]
[1763480619198,3.794504,3116.1,3115.6,0.001]
[1763480619393,0.592204,3115.7,3115.6,0.001]
[1763480619766,1.064204,3115.7,3115.6,0.001]
[1763480620266,10.65285764,3115.7,3115.6,0.001]
[1763480620490,11.92360064,3115.7,3115.6,0.001]
[1763480620688,11.50266064,3115.7,3115.6,0.001]
[1763480620889,9.6858207,3115.7,3115.6,0.001]
[1763480621100,3.1214627,3115.7,3115.6,0.001]
[1763480621273,1.97119664,3115.7,3115.6,0.001]
[1763480621472,0.90699264,3115.7,3115.6,0.001]
[1763480622063,0.1867,3116.1,3115.6,0.001]
[1763480622268,3.389,3115.4,3114.7,0.001]
[1763480622502,0.1867,3114.9,3114.7,0.001]
[1763480623177,0.1867,3115.2,3114.7,0.001]
[1763480623583,0.6587,3115.2,3114.7,0.001]
[1763480623907,0.405504,3115.3,3114.7,0.001]
[1763480624421,0.877504,3115.3,3114.7,0.001]
[1763480624617,0.1867,3115.4,3114.7,0.001]
[1763480624817,0.1867,3115.8,3114.7,0.001]
[1763480625011,0.1867,3115.9,3114.8,0.1904]
[1763480625381,0.405504,3115.8,3114.7,0.001]
[1763480625593,1.09369264,3115.9,3114.7,0.001]
[1763480625804,1.6078319,3115.9,3114.7,0.001]
[1763480626108,0.405504,3115.8,3114.7,0.001]
[1763480627124,3.794504,3115.6,3114.7,0.001]